bitfinex/quotes_SOLUSD_20251208
["timestamp","ask_amount","ask_price","bid_price","bid_amount"]
[1765232840357,8.18,134.12,134.1,0.67]
[1765232840530,8.18,134.12,134.1,8.12706886]
[1765232840737,19.0437073,134.17,134.11,2.59455982]
[1765232840937,16.98994492,134.16,134.12,0.67]
[1765232841156,45.67275756,134.16,134.12,0.67]
[1765232841358,0.41,134.15,134.12,0.67]
[1765232842459,15.63489786,134.14,134.12,0.67]
[1765232842643,18.22945768,134.14,134.12,0.67]
[1765232849174,7.4544418,134.15,134.13,0.7]
[1765232849472,15.6144418,134.15,134.13,0.7]
[1765232849665,8.80994492,134.17,134.13,0.7]
[1765232849851,16.96994492,134.17,134.13,0.7]
[1765232850748,24.4233668,134.17,134.13,0.7]
[1765232851373,24.4233668,134.17,134.13,8.15539546]
[1765232851676,24.4233668,134.17,134.14,0.7]
[1765232853774,27.01792662,134.17,134.14,0.7]
[1765232854377,8.16,134.17,134.14,8.15466152]
[1765232854875,8.16,134.17,134.15,0.7]
[1765232855974,16.26227125,134.19,134.15,70.25424224]
[1765232856280,15.61177504,134.2,134.16,0.7]
[1765232856580,15.61177504,134.2,134.16,62.8]
[1765232856875,15.61177504,134.2,134.17,0.7]
[1765232859763,15.61177504,134.2,134.17,62.8]
[1765232859958,15.61177504,134.2,134.18,0.7]
[1765232864290,18.20633486,134.2,134.17,62.1]
[1765232864483,18.20633486,134.2,134.18,0.7]
[1765232864682,11.81450474,134.19,134.17,62.1]
[1765232864890,11.40450474,134.19,134.17,62.1]
[1765232865425,2.59455982,134.18,134.17,0.7]
[1765232865762,2.59455982,134.18,134.15,0.7]
[1765232866194,10.75455982,134.18,134.15,0.7]
[1765232866878,2.59455982,134.16,134.14,62.1]
[1765232867083,2.59455982,134.17,134.14,62.8]
[1765232867278,2.59455982,134.17,134.15,0.7]
[1765232868264,10.0481402,134.17,134.15,0.7]
[1765232870003,7.45358038,134.17,134.15,0.7]
[1765232870209,10.0481402,134.17,134.15,0.7]
[1765232872629,7.45358038,134.17,134.15,0.7]
[1765232875090,11.50116196,134.17,134.15,0.7]
[1765232880444,11.50116196,134.17,134.15,62.8]
[1765232880722,11.50116196,134.17,134.16,0.71]
[1765232881598,7.45358038,134.17,134.16,0.71]
[1765232881804,15.61283425,134.18,134.16,0.71]
[1765232886338,15.61283425,134.18,134.16,62.81]
[1765232886707,15.61283425,134.18,134.17,0.71]
[1765232894016,8.16,134.18,134.17,0.71]
[1765232909136,15.61267551,134.18,134.17,0.71]
[1765232909334,8.80994492,134.17,134.15,62.1]
[1765232909539,21.0175265,134.16,134.15,62.1]
[1765232909732,21.4275265,134.16,134.15,62.1]
[1765232910259,21.0175265,134.16,134.15,62.1]
[1765232912941,28.88131302,134.16,134.15,62.1]
[1765232913134,28.88131302,134.16,134.12,0.67]
[1765232913135,28.88131302,134.16,134.12,62.1]
[1765232913455,4.04758158,134.14,134.13,0.67]
[1765232917258,11.50247944,134.14,134.12,62.1]
[1765232917462,13.2675265,134.13,134.09,0.67]
[1765232917664,4.04758158,134.1,134.09,0.67]
[1765232922477,11.50470313,134.1,134.09,0.67]
[1765232924774,11.50414708,134.11,134.09,0.67]
[1765232925154,7.4565655,134.11,134.09,0.67]
[1765232926671,12.20758158,134.12,134.09,0.67]
[1765232926672,7.45608737,134.12,134.09,0.67]
[1765232927975,7.45608737,134.12,134.09,62.77]
[1765232928269,15.61559685,134.13,134.1,0.67]
[1765232928478,7.45559685,134.13,134.1,62.77]
[1765232928860,7.45559685,134.13,134.11,0.67]
[1765232931174,16.96994492,134.15,134.11,62.77]
[1765232931351,8.16,134.15,134.11,62.77]
[1765232931675,15.61453036,134.15,134.12,0.68]
[1765232931875,8.16,134.15,134.12,62.78]
[1765232932052,7.45391247,134.16,134.12,66.82758158]
[1765232932247,7.45391247,134.16,134.13,0.68]
[1765232933976,15.61343303,134.17,134.13,0.68]
[1765232934478,15.61343303,134.17,134.13,4.72758158]
[1765232934680,15.61343303,134.17,134.13,3.27001405]
[1765232934856,15.61343303,134.17,134.14,0.68]
[1765232942778,15.61343303,134.17,134.14,62.78]
[1765232943982,15.61343303,134.17,134.15,0.68]
[1765232944278,15.61343303,134.17,134.15,62.78]
[1765232945081,7.45270115,134.18,134.16,0.68]
[1765232947285,7.33322114,134.18,134.16,0.68]
[1765232948663,34.24141349,134.2,134.16,62.78]
[1765232948863,34.24141349,134.2,134.16,65.37001405]
[1765232949161,34.24141349,134.2,134.17,0.68]
[1765232949784,8.80994492,134.22,134.18,2.59001405]
[1765232949984,16.96994492,134.22,134.18,2.59001405]
[1765232950292,16.96994492,134.22,134.19,0.68]
[1765232950672,15.61084535,134.22,134.19,0.68]
[1765232951063,15.61084535,134.22,134.19,8.13362471]
[1765232951559,15.61084535,134.22,134.2,0.68]
[1765232952798,8.16,134.22,134.2,0.68]
[1765232953364,7.44998295,134.23,134.2,0.68]
[1765232955093,8.36,134.24,134.2,8.13137283]
[1765232955396,8.36,134.24,134.21,0.68]
[1765232956667,0.2,134.24,134.21,65.37001405]
[1765232956899,0.2,134.24,134.22,2.59001405]
[1765232957088,0.2,134.24,134.22,65.37001405]
[1765232957274,0.2,134.24,134.23,0.68]
[1765232962170,0.2,134.24,134.23,62.78]
[1765232963010,0.2,134.24,134.23,62.77]
[1765232963866,0.2,134.24,134.23,62.1]
[1765232965091,0.2,134.24,134.23,62.77]
[1765232966477,0.2,134.24,134.23,0.67]
[1765232968107,0.2,134.24,134.2,10.90900153]
[1765232968108,19.45931936,134.24,134.2,10.90900153]
[1765232968285,2.59001405,134.23,134.2,0.67]
[1765232969304,3.00001405,134.23,134.2,0.67]
[1765232970207,10.4504556,134.23,134.2,0.67]
[1765232972799,10.0404556,134.23,134.2,0.67]
[1765232973581,10.4504556,134.23,134.2,0.67]
[1765232973972,0.2,134.24,134.2,8.83]
[1765232974380,0.2,134.24,134.21,0.67]
[1765232975511,0.2,134.24,134.21,62.77]
[1765232975697,0.2,134.24,134.22,0.67]
[1765232980710,0.2,134.24,134.22,62.77]
[1765232981194,0.2,134.24,134.23,0.67]
[1765232984314,0.2,134.24,134.23,62.77]
[1765232991741,10.6493585,134.24,134.23,62.1]
[1765232991887,8.80994492,134.23,134.18,0.68]
[1765232992091,2.59001405,134.2,134.17,16.988864]
[1765232992291,2.59001405,134.2,134.17,0.68]
[1765232992519,2.59001405,134.2,134.18,0.68]
[1765232993290,7.45212012,134.19,134.18,0.68]
[1765232994397,10.04213417,134.19,134.18,0.68]
[1765232996819,4.04640208,134.19,134.18,0.68]
[1765232997808,11.4985222,134.19,134.18,0.68]
[1765232998016,8.80994492,134.18,134.16,62.1]
[1765232998211,4.04640208,134.17,134.16,62.1]
[1765232998521,4.45640208,134.17,134.14,62.78]
[1765232998819,4.04640208,134.15,134.14,62.78]
[1765233001321,11.50074423,134.15,134.12,0.68]
[1765233001527,4.04640208,134.13,134.09,0.68]
[1765233001707,4.04640208,134.13,134.05,104.3]
[1765233001708,4.04640208,134.1,134.07,26.21994492]
[1765233001905,4.04640208,134.09,134.07,25.148864]
[1765233002120,4.04640208,134.09,134.08,0.68]
[1765233002621,4.04640208,134.09,134.05,62.2]
[1765233002622,4.04640208,134.09,134.05,80.83883838]
[1765233002802,7.86677214,134.11,134.07,0.67]
[1765233003192,0.41,134.1,134.07,0.67]
[1765233004213,4.04640208,134.08,134.07,0.67]
[1765233004809,4.04640208,134.08,134.06,0.67]
[1765233005004,4.04640208,134.07,134.05,0.1]
[1765233005208,4.04640208,134.06,134.05,0.1]
[1765233005716,4.04640208,134.06,134.05,0.77]
[1765233006297,11.50574864,134.06,134.05,0.77]
[1765233006625,11.50574864,134.06,134.05,0.1]
[1765233008427,11.50574864,134.06,134.05,0.77]
[1765233010525,7.45934656,134.06,134.05,0.77]
[1765233010726,7.45805274,134.09,134.05,66.91640208]
[1765233010908,7.45600954,134.12,134.08,20.35526608]
[1765233011224,7.45600954,134.12,134.08,86.568864]
[1765233011427,7.45600954,134.12,134.09,0.67]
[1765233011803,7.45545366,134.13,134.09,0.67]
[1765233012206,22.68410115,134.14,134.1,4.04640208]
[1765233012207,7.45502238,134.14,134.1,4.04640208]
[1765233012412,7.45502238,134.14,134.1,26.44031093]
[1765233012612,7.45502238,134.14,134.11,0.67]
[1765233012831,18.6349562,134.16,134.11,0.67]
[1765233013011,4.04640208,134.16,134.11,8.83]
[1765233013440,11.49963305,134.17,134.12,0.67]
[1765233014105,7.45316085,134.18,134.14,16.308864]
[1765233014306,4.04640208,134.15,134.12,0.67]
[1765233014506,26.08484962,134.18,134.13,0.67]
[1765233014734,26.08484962,134.18,134.13,21.02526608]
[1765233015233,26.08484962,134.18,134.14,0.67]
[1765233015592,4.04640208,134.16,134.14,0.67]
[1765233015711,4.04640208,134.15,134.14,0.67]
[1765233015912,4.04640208,134.15,134.13,16.308864]
[1765233015913,7.45489786,134.14,134.11,0.67]
[1765233016130,4.04640208,134.13,134.11,0.67]
[1765233016312,4.04640208,134.12,134.11,0.67]
[1765233016706,4.04640208,134.12,134.08,8.16]
[1765233016917,4.04640208,134.09,134.08,0.67]
[1765233017625,4.04640208,134.09,134.06,25.138864]
[1765233017841,4.04640208,134.07,134.06,0.67]
[1765233018736,4.04640208,134.07,134.05,0.1]
[1765233019045,4.04640208,134.06,134.05,0.77]
[1765233019234,7.45852579,134.08,134.05,0.77]
[1765233019464,12.20640208,134.11,134.05,4.81640208]
[1765233019648,8.16,134.11,134.05,4.81640208]
[1765233019850,8.16,134.11,134.07,16.308864]
[1765233020065,15.61671105,134.11,134.07,16.308864]
[1765233020266,15.61671105,134.11,134.08,0.67]
[1765233020675,7.45671105,134.11,134.08,0.67]
[1765233022076,11.50185574,134.13,134.08,8.83]
[1765233022440,11.50185574,134.13,134.09,0.67]
[1765233023448,4.04640208,134.12,134.09,0.67]
[1765233024269,11.50185574,134.13,134.09,0.67]
[1765233024766,11.91185574,134.13,134.09,0.67]
[1765233024948,11.50185574,134.13,134.09,0.67]
[1765233025887,30.1404899,134.13,134.09,62.77]
[1765233026342,30.1404899,134.13,134.1,0.67]
[1765233026542,4.04640208,134.12,134.09,62.77]
[1765233026754,30.5504899,134.13,134.09,62.77]
[1765233027163,30.1404899,134.13,134.1,0.67]
[1765233028283,4.04640208,134.11,134.07,78.408864]
[1765233028450,4.04640208,134.1,134.07,79.078864]
[1765233028651,9.67826093,134.08,134.05,62.87]
[1765233029153,9.67826093,134.08,134.06,0.67]
[1765233029871,17.13685289,134.08,134.06,0.67]
[1765233030872,7.45859196,134.08,134.06,0.67]
[1765233031175,7.45859196,134.08,134.06,62.77]
[1765233033760,17.13685289,134.08,134.06,62.1]
[1765233034075,17.13685289,134.08,134.06,62.77]
[1765233035059,10.08826093,134.07,134.05,0.1]
[1765233035253,9.67826093,134.06,134.05,0.1]
[1765233035989,10.08826093,134.06,134.05,0.1]
[1765233036301,18.89820585,134.06,134.05,0.1]
[1765233036787,18.48820585,134.06,134.05,0.1]
[1765233036952,17.13760749,134.06,134.05,0.1]
[1765233037156,7.45934656,134.06,134.05,0.1]
[1765233038278,26.10434622,134.08,134.05,0.77]
[1765233038574,9.67826093,134.06,134.05,0.1]
[1765233039676,17.13760749,134.06,134.05,0.1]
[1765233039974,26.35755241,134.06,134.05,0.1]
[1765233040684,34.53755241,134.06,134.05,0.1]
[1765233043779,8.80994492,134.05,134.04,0.1]
[1765233043980,18.89820585,134.05,134.04,0.1]
[1765233044288,18.89820585,134.05,134.03,0.1]
[1765233044587,18.26826093,134.04,134.03,0.1]
[1765233044782,27.07820585,134.04,134.03,1e-08]
[1765233045565,34.53866541,134.04,134.03,1e-08]
[1765233047288,18.48820585,134.03,134.02,1e-08]
[1765233047465,18.89820585,134.03,134.02,1e-08]
[1765233047665,26.35922204,134.03,134.02,1e-08]
[1765233048662,20.73924919,134.03,134.02,1e-08]
[1765233051276,16.27096111,134.03,134.02,1e-08]
[1765233051481,20.73924919,134.03,134.02,1e-08]
[1765233051994,16.68096111,134.03,134.02,1e-08]
[1765233055176,7.46101619,134.03,134.02,0.65000001]
[1765233056184,7.46045956,134.04,134.02,0.65000001]
[1765233070419,7.46045956,134.04,134.02,62.75000001]
[1765233070613,7.46045956,134.04,134.03,0.67]
[1765233071819,7.46045956,134.04,134.02,62.10000001]
[1765233071996,7.46045956,134.04,134.02,62.77000001]
[1765233072398,7.46045956,134.04,134.03,0.67]
[1765233081725,7.46045956,134.04,134.02,62.78000001]
[1765233081921,16.27040448,134.04,134.02,62.78000001]
[1765233082333,16.27040448,134.04,134.02,0.68000001]
[1765233083008,24.45040448,134.04,134.02,0.68000001]
[1765233097324,15.64045956,134.04,134.02,0.68000001]
[1765233099449,7.46045956,134.04,134.03,2.59497083]
[1765233099824,7.46045956,134.04,134.03,3.27497083]
[1765233100849,18.6475711,134.07,134.03,3.27497083]
[1765233101149,18.6475711,134.07,134.04,3.27497083]
[1765233101344,7.45934656,134.06,134.04,3.27497083]
[1765233101549,26.10636128,134.07,134.05,0.68]
[1765233102550,26.10636128,134.07,134.05,3.27497083]
[1765233102952,26.10636128,134.07,134.06,0.68]
[1765233109441,7.45879018,134.07,134.03,8.18]
[1765233109750,7.45879018,134.07,134.05,0.68]
[1765233110666,18.64697546,134.07,134.05,0.68]
[1765233111740,26.10576564,134.07,134.05,0.68]
[1765233114939,26.10576564,134.07,134.05,62.78]
[1765233115149,26.10576564,134.07,134.06,0.72]
[1765233116166,26.10576564,134.07,134.05,62.82]
[1765233117061,26.10576564,134.07,134.05,62.1]
[1765233117255,26.10576564,134.07,134.06,0.72]
[1765233117445,26.10576564,134.07,134.05,62.82]
[1765233118462,26.10576564,134.07,134.06,0.72]
[1765233119062,8.80994492,134.12,134.06,66.87160345]
[1765233119265,16.98994492,134.12,134.09,4.05160345]
[1765233119762,16.98994492,134.12,134.1,0.72]
[1765233120267,26.09830521,134.11,134.1,0.72]
[1765233126370,7.4565655,134.11,134.1,0.72]
[1765233126890,30.14958271,134.11,134.06,74.33160345]
[1765233127050,26.09797926,134.11,134.1,0.68]
[1765233128216,18.64141376,134.11,134.1,0.68]
[1765233129479,18.64141376,134.11,134.07,4.05160345]
[1765233129674,18.64141376,134.11,134.1,0.68]
[1765233139379,18.64141376,134.11,134.1,19.32141376]
[1765233140873,27.86135868,134.11,134.1,18.64141376]
[1765233141070,8.80994492,134.1,134.07,62.1]
[1765233141263,4.05160345,134.08,134.06,62.78]
[1765233141602,8.80994492,134.06,134.04,0.67]
[1765233141764,4.05160345,134.05,134.04,0.67]
[1765233142492,17.39994492,134.06,134.04,0.67]
[1765233142660,12.23160345,134.08,134.04,0.67]
[1765233142988,7.45934656,134.06,134.04,0.67]
[1765233144203,7.45767767,134.09,134.05,16.308864]
[1765233144367,11.50928112,134.09,134.05,16.308864]
[1765233144692,30.15347531,134.09,134.06,0.67]
[1765233144890,26.10187186,134.09,134.06,0.67]
[1765233145078,30.15347531,134.09,134.06,0.67]
[1765233146693,26.10187186,134.09,134.06,0.67]
[1765233147100,30.15347531,134.09,134.06,0.67]
[1765233147778,30.15347531,134.09,134.06,62.77]
[1765233147979,30.15347531,134.09,134.07,0.67]
[1765233148368,7.45767767,134.09,134.07,0.67]
[1765233148770,7.45712155,134.1,134.07,0.67]
[1765233149285,7.45712155,134.1,134.07,62.77]
[1765233149477,7.45712155,134.1,134.08,0.67]
[1765233150107,4.05160345,134.1,134.08,0.67]
[1765233150470,4.05160345,134.1,134.08,23.07059734]
[1765233150675,4.05160345,134.1,134.09,0.67]
[1765233150890,30.15017144,134.11,134.09,0.67]
[1765233151289,26.09856799,134.11,134.09,0.67]
[1765233151700,26.09856799,134.11,134.09,23.07059734]
[1765233152002,26.09856799,134.11,134.1,0.67]
[1765233152503,30.15017144,134.11,134.1,0.67]
[1765233153388,26.09856799,134.11,134.1,0.67]
[1765233155712,7.4565655,134.11,134.1,0.67]
[1765233156007,7.45491664,134.14,134.1,62.77]
[1765233156304,7.45491664,134.14,134.11,0.67]
[1765233156608,7.45491664,134.14,134.11,19.30585068]
[1765233156909,7.45491664,134.14,134.11,0.67]
[1765233157081,7.45491664,134.14,134.12,0.67]
[1765233157412,7.45434215,134.15,134.12,19.97585068]
[1765233157906,7.45434215,134.15,134.13,0.67]
[1765233158104,4.05160345,134.14,134.13,19.97585068]
[1765233158306,4.05160345,134.14,134.12,0.67]
[1765233158504,4.05160345,134.13,134.12,0.67]
[1765233158704,4.05160345,134.13,134.12,19.30585068]
[1765233159588,11.50705711,134.13,134.12,19.30585068]
[1765233160810,7.45545366,134.13,134.12,19.30585068]
[1765233161583,11.50627795,134.15,134.12,19.30585068]
[1765233161785,27.01370049,134.17,134.13,0.67]
[1765233161786,22.88530394,134.17,134.13,0.67]
[1765233161996,18.83370049,134.17,134.13,0.67]
[1765233162201,7.45397561,134.16,134.14,22.3905661]
[1765233162588,7.45397561,134.16,134.15,0.67]
[1765233165415,0.2,134.17,134.15,62.77]
[1765233165919,0.2,134.17,134.16,0.67]
[1765233166116,0.2,134.17,134.16,62.77]
[1765233166317,0.2,134.17,134.16,89.56095457]
[1765233167723,0.2,134.17,134.16,97.01474109]
[1765233168422,0.2,134.17,134.16,89.56095457]
[1765233168610,0.2,134.17,134.16,93.61255802]
[1765233171402,0.2,134.18,134.17,61.9]
[1765233171602,0.2,134.18,134.17,62.55]
[1765233172024,0.2,134.18,134.17,84.9338836]
[1765233172420,0.2,134.18,134.17,43.34866294]
[1765233172605,0.2,134.18,134.17,35.28404111]
[1765233175925,0.2,134.18,134.17,44.09398603]
[1765233177530,0.2,134.18,134.17,105.99398603]
[1765233178730,0.2,134.18,134.17,104.52921777]
[1765233183328,7.64970711,134.24,134.22,61.5]
[1765233183514,7.64970711,134.24,134.22,72.24683519]
[1765233183716,7.64970711,134.24,134.22,72.91683519]
[1765233183923,7.64970711,134.24,134.23,18.82124454]
[1765233189240,0.2,134.24,134.23,80.32124454]
[1765233193744,7.64934445,134.24,134.23,80.32124454]
[1765233193946,8.05934445,134.24,134.23,80.32124454]
[1765233194135,7.64934445,134.24,134.23,80.32124454]
[1765233194861,0.2,134.24,134.23,80.32124454]
[1765233195443,0.2,134.24,134.23,80.99124454]
[1765233195645,0.2,134.25,134.24,61.3]
[1765233196537,0.2,134.25,134.24,68.94833611]
[1765233197642,0.2,134.25,134.24,61.3]
[1765233199654,0.2,134.25,134.24,69.46]
[1765233200834,0.2,134.25,134.24,70.13]
[1765233201035,0.2,134.25,134.24,72.71683519]
[1765233201358,0.2,134.25,134.24,75.69935019]
[1765233201556,0.2,134.25,134.24,83.89362908]
[1765233206040,0.2,134.25,134.24,81.30679389]
[1765233206250,0.2,134.25,134.24,83.89362908]
[1765233207164,0.2,134.28,134.27,60.7]
[1765233207355,0.2,134.28,134.27,68.86]
[1765233207532,0.2,134.28,134.27,69.54]
[1765233209761,0.2,134.28,134.27,76.98768004]
[1765233210059,0.2,134.28,134.27,84.63351538]
[1765233211058,0.2,134.28,134.27,87.22035057]
[1765233211254,0.2,134.28,134.27,84.63351538]
[1765233211656,0.2,134.28,134.27,87.22035057]
[1765233212241,0.2,134.28,134.27,87.96511857]
[1765233212446,0.2,134.28,134.27,200.97506349]
[1765233212648,0.2,134.3,134.29,16.308864]
[1765233212848,0.2,134.3,134.29,28.48035627]
[1765233213051,0.2,134.3,134.29,35.92692712]
[1765233213255,0.2,134.3,134.29,47.71805333]
[1765233213470,0.2,134.3,134.29,212.61805333]
[1765233213672,0.2,134.3,134.29,211.87339625]
[1765233218581,0.2,134.32,134.31,62.88683519]
[1765233218767,0.2,134.32,134.31,71.72683519]
[1765233219280,0.2,134.32,134.31,74.70779431]
[1765233219473,0.2,134.32,134.31,82.1532563]
[1765233221575,0.2,134.32,134.31,71.44095912]
[1765233221783,0.2,134.32,134.31,87.74982312]
[1765233221958,0.2,134.32,134.31,88.42982312]
[1765233222157,0.2,134.32,134.31,87.74982312]
[1765233222359,0.2,134.32,134.31,88.42982312]
[1765233223372,0.81,134.32,134.31,87.74982312]
[1765233223570,0.2,134.32,134.31,87.74982312]
[1765233223766,0.2,134.32,134.31,84.768864]
[1765233227781,8.25438849,134.33,134.32,60.1]
[1765233232969,7.64438849,134.33,134.32,60.1]
[1765233233175,8.25438849,134.33,134.32,60.1]
[1765233233467,0.2,134.33,134.32,60.1]
[1765233238777,7.64435345,134.33,134.32,60.1]
[1765233240597,12.29134533,134.33,134.32,60.1]
[1765233240827,8.80994492,134.32,134.26,60.1]
[1765233240971,9.41994492,134.32,134.26,60.1]
[1765233241170,4.03699188,134.28,134.26,60.1]
[1765233241567,4.64699188,134.28,134.26,60.1]
[1765233242015,4.03699188,134.27,134.26,60.1]
[1765233242898,11.48467192,134.27,134.26,60.1]
[1765233243282,12.09467192,134.27,134.24,84.568864]
[1765233243598,4.64699188,134.26,134.24,84.568864]
[1765233243974,4.03699188,134.26,134.24,84.568864]
[1765233244375,11.48536604,134.26,134.24,85.278864]
[1765233246108,4.03699188,134.25,134.24,60.1]
[1765233247311,11.48578145,134.25,134.24,60.1]
[1765233247808,12.09578145,134.25,134.24,60.1]
[1765233248207,30.71775537,134.25,134.22,24.468864]
[1765233248509,4.03699188,134.23,134.22,16.308864]
[1765233249012,4.64699188,134.23,134.22,16.308864]
[1765233250009,12.0968913,134.23,134.2,25.178864]
[1765233250317,4.03699188,134.22,134.2,25.178864]
[1765233250495,4.03699188,134.21,134.2,8.16]
[1765233250687,4.64699188,134.21,134.17,0.71]
[1765233250893,4.03699188,134.2,134.17,8.87]
[1765233251209,4.64699188,134.2,134.17,8.16]
[1765233252086,7.45212012,134.19,134.17,8.16]
[1765233252407,7.45177052,134.2,134.17,8.87]
[1765233252612,7.45177052,134.2,134.18,0.71]
[1765233252911,7.45177052,134.2,134.17,8.87]
[1765233253406,7.45059249,134.22,134.18,0.71]
[1765233253612,7.45059249,134.22,134.19,8.16]
[1765233253990,7.45059249,134.22,134.19,8.87]
[1765233257007,7.45059249,134.22,134.19,8.16]
[1765233257210,7.45059249,134.22,134.2,0.71]
[1765233257513,7.45059249,134.22,134.2,60.81]
[1765233257916,11.48758437,134.22,134.2,60.1]
[1765233258090,11.48758437,134.22,134.2,60.81]
[1765233258492,11.48758437,134.22,134.2,60.1]
[1765233258700,12.09758437,134.22,134.2,60.1]
[1765233259709,12.09800149,134.21,134.2,60.1]
[1765233262796,12.09800149,134.21,134.19,60.1]
[1765233263105,4.64699188,134.2,134.19,60.1]
[1765233263997,12.0985567,134.2,134.19,60.1]
[1765233264217,20.2585567,134.2,134.19,60.1]
[1765233266519,38.88746877,134.2,134.14,69.13]
[1765233266718,0.61,134.19,134.14,68.46]
[1765233267024,4.03699188,134.17,134.15,0.67]
[1765233267223,4.03699188,134.17,134.15,60.77]
[1765233270526,7.45378652,134.16,134.15,60.77]
[1765233275536,30.12152023,134.18,134.15,60.77]
[1765233276026,30.73152023,134.18,134.15,60.77]
[1765233278356,26.69452835,134.18,134.15,60.77]
[1765233278715,30.12152023,134.18,134.15,60.77]
[1765233279329,30.73152023,134.18,134.15,60.77]
[1765233280816,30.73152023,134.18,134.15,60.1]
[1765233280817,4.03699188,134.16,134.15,60.1]
[1765233281335,4.64699188,134.16,134.15,60.1]
[1765233281514,12.1007784,134.16,134.15,60.1]
[1765233282317,12.1007784,134.16,134.14,60.3]
[1765233282519,4.64699188,134.15,134.14,0.2]
[1765233284042,12.10133403,134.15,134.14,0.2]
[1765233286142,20.26133403,134.15,134.14,0.2]
[1765233291546,38.89718941,134.15,134.12,0.68]
[1765233291746,4.03699188,134.14,134.12,60.78]
[1765233292749,7.45545366,134.13,134.12,60.78]
[1765233293447,30.7410797,134.13,134.1,60.2]
[1765233293749,4.03699188,134.11,134.1,60.2]
[1765233293922,4.03699188,134.11,134.1,0.1]
[1765233294129,4.64699188,134.11,134.1,0.1]
[1765233294735,12.10355738,134.11,134.1,0.1]
[1765233295532,20.26355738,134.11,134.1,0.1]
[1765233296047,29.0735023,134.11,134.1,1e-08]
[1765233296832,9.41994492,134.1,134.08,1e-08]
[1765233297038,12.19699188,134.09,134.08,1e-08]
[1765233297347,17.57994492,134.09,134.08,1e-08]
[1765233297522,21.6169368,134.09,134.08,1e-08]
[1765233298650,21.6169368,134.09,134.02,1e-08]
[1765233298651,16.308864,134.06,134.02,1e-08]
[1765233298822,7.46045956,134.04,134.02,1e-08]
[1765233299019,11.49745144,134.04,134.02,1e-08]
[1765233299218,7.46045956,134.04,134.02,0.68000001]
[1765233299447,11.49745144,134.04,134.02,0.68000001]
[1765233299749,7.46045956,134.04,134.02,0.68000001]
[1765233300050,11.49745144,134.04,134.02,0.68000001]
[1765233300272,7.46045956,134.04,134.02,0.68000001]
[1765233300555,7.46045956,134.04,134.02,4.71699189]
[1765233300729,7.46045956,134.04,134.02,3.27440009]
[1765233301049,18.65100648,134.05,134.03,0.66]
[1765233305546,7.45934656,134.06,134.03,63.35440008]
[1765233305864,7.45934656,134.06,134.04,2.59440008]
[1765233306163,26.82466802,134.09,134.05,2.59440008]
[1765233306367,26.82466802,134.09,134.06,0.66]
[1765233307661,7.45823389,134.08,134.06,0.66]
[1765233317071,7.45823389,134.08,134.06,60.76]
[1765233318865,18.6417336,134.11,134.07,3.25440008]
[1765233319249,18.6417336,134.11,134.08,0.66]
[1765233319550,18.6417336,134.11,134.08,60.76]
[1765233319952,18.6417336,134.11,134.09,0.66]
[1765233321066,18.6417336,134.11,134.09,60.76]
[1765233321675,26.0982991,134.11,134.09,60.76]
[1765233324283,26.0982991,134.11,134.1,0.71]
[1765233324458,7.4565655,134.11,134.1,0.71]
[1765233324659,7.45619616,134.12,134.1,62.81]
[1765233324860,7.45619616,134.12,134.1,0.71]
[1765233325085,7.45619616,134.12,134.11,0.71]
[1765233327371,26.09467551,134.13,134.11,0.71]
[1765233332208,8.18,134.14,134.11,0.71]
[1765233332374,8.06438837,134.15,134.11,0.71]
[1765233332575,34.88024375,134.15,134.11,0.71]
[1765233333498,0.61,134.14,134.09,8.18]
[1765233333797,3.20440008,134.14,134.11,0.71]